Workbook

Sheet a and b
C1: The Logistic Growth Model | W1: =#REF! ->  | X1: =#REF! ->  | Y1: 0 | Z1: =a -> 0.29
W2: =E15 -> 0.00338 | X2: =#REF! ->  | Y2: =x.one ->  | Z2: =a*U1^Y2 -> 
C3: This program lets you investigate the | W3: =E18 -> 18 | X3: =#REF! -> 
C4: behavior of the solution | Y4: 0 | Z4: =a -> 0.29
C5: of the continuous logistic growth model
C8: based on values for a and b.
B12: Enter the initial growth rate a | E12: =F12/100+0.01 -> 0.29 | F12: 28
C13: a is between 0.01 (1%) and 0.50 (50%)
B15: Enter the inhibiting constant b | E15: =F15/50000+0.0001 -> 0.0034 | F15: 164
C16: b is between 0.0001 and 0.005
B18: What is the initial population P0? | E18: =F18+1 -> 18 | F18: 17
C19: P0 is between 1 and 1000 | J19: The limiting (or maximum sustainable) population is
K20: L = a/b = | L20: =a/b -> 86
J22: Trace along the population curve:
A23: Click each item below for suggestions and investigations | J23: t = | K23: =L23/2 -> 25.5 | L23: 51
D24: Item 1 | J24: P = | K24: =LOOKUP(t0+0.001,Sheet3!A1:A203,Sheet3!B1:B203) -> 86
D25: Item 2
D26: Item 3
D27: Item 4
A31: To access/download all the DIGMath Apps for Calculus
A32: Click this link: | D32: DIGMath for Calculus
A34: Created by: Sheldon P. Gordon
A35: Farmingdale State College
A36: Development of this module was supported by the
A37: NSF's Division of Undergraduate Education
A38: under grants DUE-0310123 and DUE-0442160.

Sheet a and L
C1: The Logistic Growth Model | V1: -2 | W1: =a*V1^2+b*V1+cc -> 1.15324 | X1: 0 | Y1: 1
V2: 1 | W2: =a*V2^2+b*V2+cc -> 0.29338
C3: This program lets you investigate the | V3: 3 | W3: =a*V3^2+b*V3+cc -> 2.62014
C4: behavior of the solution
C5: of the continuous logistic growth model | U5: =a -> 0.29 | V5: =-b/2/a -> -0.005827586207 | W5: =a*V5^2+b*V5+cc -> -0.00001
U6: =b -> 0.00338
U7: =cc -> 0
C8: based on values for a and L.
B11: Enter the initial growth rate a | E11: =F11/100+0.01 -> 0.10 | F11: 9
C12: a is between 0.01 (1%) and 0.50 (50%)
B14: Enter a value for the maximum sustainable population
C15: L is between 1 and 5000 | E15: =F15+1 -> 2478 | F15: 2477
B18: What is the initial population P0? | E18: =F18+1 -> 213 | F18: 212 | J18: The inhibiting constant is
C19: P0 is between 1 and 1000 | K19: b = a/L = | L19: =aa/LL -> 0.00004
J21: Trace along the population curve:
J22: t = | K22: =L22/2 -> 68 | L22: 136
A23: Click each item below for suggestions and investigations | J23: P = | K23: =LOOKUP(t00+0.001,Sheet3!F1:F201,Sheet3!G1:G201) -> 2449
D24: Item 1
D25: Item 2
D26: Item 3
D27: Item 4
A31: To access/download all the DIGMath Apps for Calculus
A32: Click this link: | D32: DIGMath for Calculus
A34: Created by: Sheldon P. Gordon
A35: Farmingdale State College
A36: Development of this module was supported by the
A37: NSF's Division of Undergraduate Education
A38: under grants DUE-0310123 and DUE-0442160.
U856: =X856 -> 0 | V856: =X856 -> 0

Sheet Sheet3
A1: 0 | B1: =P0 -> 18 | C1: 0 | D1: =a/b -> 85.79881657 | F1: 0 | G1: =P00 -> 213 | H1: 0 | I1: =LL -> 2478
A2: 1 | B2: =a*P0*EXP(a*A2)/(a+b*P0*(EXP(a*A2)-1)) -> 22.46977436 | C2: 200 | D2: =a/b -> 85.79881657 | F2: 1 | G2: =LL*P00*EXP(aa*F2)/(LL+P00*(EXP(aa*F2)-1)) -> 233.2924152 | H2: 200 | I2: =LL -> 2478
A3: 2 | B3: 27.59768355 | F3: 2 | G3: 255.300173
A4: 3 | B4: 33.28085393 | C4: =LOOKUP(D4,B1:B101,A1:A101) -> 4 | D4: =a/b/2 -> 42.89940828 | F4: 3 | G4: 279.1258824 | H4: =LOOKUP(I4,G1:G101,F1:F101) -> 23 | I4: =LL/2 -> 1239
A5: 4 | B5: 39.34322642 | F5: 4 | G5: 304.870127
A6: 5 | B6: 45.55207258 | F6: 5 | G6: 332.6296191
A7: 6 | B7: 51.65133115 | F7: 6 | G7: 362.4950868
A8: 7 | B8: 57.4024734 | F8: 7 | G8: 394.5489071
A9: 8 | B9: 62.61968001 | F9: 8 | G9: 428.8625088
A10: 9 | B10: 67.18909747 | F10: 9 | G10: 465.4935884
A11: 10 | B11: 71.06960466 | F11: 10 | G11: 504.4831987
A12: 11 | B12: 74.27967293 | F12: 11 | G12: 545.8527948
A13: 12 | B13: 76.87795807 | F13: 12 | G13: 589.601337
A14: 13 | B14: 78.94425122 | F14: 13 | G14: 635.7025729
A15: 14 | B15: 80.56452554 | F15: 14 | G15: 684.1026355
A16: 15 | B16: 81.8210992 | F16: 15 | G16: 734.7181024
A17: 16 | B17: 82.7872888 | F17: 16 | G17: 787.4346625
A18: 17 | B18: 83.52531155 | F18: 17 | G18: 842.1065301
A19: 18 | B19: 84.0862116 | F19: 18 | G19: 898.5567232
A20: 19 | B20: 84.51086492 | F20: 19 | G20: 956.5782923
A21: 20 | B21: 84.83143364 | F21: 20 | G21: 1015.936545
A22: 21 | B22: 85.07289877 | F22: 21 | G22: 1076.372255
A23: 22 | B23: 85.25447936 | F23: 22 | G23: 1137.605799
A24: 23 | B24: 85.39085732 | F24: 23 | G24: 1199.34209
A25: 24 | B25: 85.4931897 | F25: 24 | G25: 1261.276137
A26: 25 | B26: 85.56992186 | F26: 25 | G26: 1323.099026
A27: 26 | B27: 85.6274279 | F27: 26 | G27: 1384.504048
A28: 27 | B28: 85.67050815 | F28: 27 | G28: 1445.192753
A29: 28 | B29: 85.70277189 | F29: 28 | G29: 1504.880646
A30: 29 | B30: 85.72692958 | F30: 29 | G30: 1563.30232
A31: 30 | B31: 85.74501481 | F31: 30 | G31: 1620.215829
A32: 31 | B32: 85.75855231 | F32: 31 | G32: 1675.406167
A33: 32 | B33: 85.76868473 | F33: 32 | G33: 1728.687771
A34: 33 | B34: =a*P0*EXP(a*A34)/(a+b*P0*(EXP(a*A34)-1)) -> 85.77626802 | F34: 33 | G34: =LL*P00*EXP(aa*F34)/(LL+P00*(EXP(aa*F34)-1)) -> 1779.90603
A35: 34 | B35: 85.7819432 | F35: 34 | G35: 1828.937819
A36: 35 | B36: 85.78619021 | F36: 35 | G36: 1875.691149
A37: 36 | B37: 85.78936838 | F37: 36 | G37: 1920.104027
A38: 37 | B38: 85.79174663 | F38: 37 | G38: 1962.142674
A39: 38 | B39: 85.79352628 | F39: 38 | G39: 2001.799233
A40: 39 | B40: 85.79485798 | F40: 39 | G40: 2039.089133
A41: 40 | B41: 85.79585447 | F41: 40 | G41: 2074.048221
A42: 41 | B42: 85.79660012 | F42: 41 | G42: 2106.729819
A43: 42 | B43: 85.79715807 | F43: 42 | G43: 2137.201788
A44: 43 | B44: 85.79757557 | F44: 43 | G44: 2165.543702
A45: 44 | B45: 85.79788797 | F45: 44 | G45: 2191.844194
A46: 45 | B46: 85.79812173 | F46: 45 | G46: 2216.198521
A47: 46 | B47: 85.79829664 | F47: 46 | G47: 2238.706378
A48: 47 | B48: 85.79842753 | F48: 47 | G48: 2259.469976
A49: 48 | B49: 85.79852546 | F49: 48 | G49: 2278.592388
A50: 49 | B50: 85.79859874 | F50: 49 | G50: 2296.176152
A51: 50 | B51: 85.79865358 | F51: 50 | G51: 2312.322121
A52: 51 | B52: 85.79869461 | F52: 51 | G52: 2327.128532
A53: 52 | B53: 85.79872531 | F53: 52 | G53: 2340.69029
A54: 53 | B54: 85.79874828 | F54: 53 | G54: 2353.098418
A55: 54 | B55: 85.79876547 | F55: 54 | G55: 2364.439672
A56: 55 | B56: 85.79877834 | F56: 55 | G56: 2374.796289
A57: 56 | B57: 85.79878796 | F57: 56 | G57: 2384.245842
A58: 57 | B58: 85.79879516 | F58: 57 | G58: 2392.861193
A59: 58 | B59: 85.79880055 | F59: 58 | G59: 2400.710517
A60: 59 | B60: 85.79880458 | F60: 59 | G60: 2407.85739
A61: 60 | B61: 85.7988076 | F61: 60 | G61: 2414.360918
A62: 61 | B62: 85.79880986 | F62: 61 | G62: 2420.275904
A63: 62 | B63: 85.79881155 | F63: 62 | G63: 2425.653036
A64: 63 | B64: 85.79881281 | F64: 63 | G64: 2430.539099
A65: 64 | B65: 85.79881376 | F65: 64 | G65: 2434.977186
A66: 65 | B66: =a*P0*EXP(a*A66)/(a+b*P0*(EXP(a*A66)-1)) -> 85.79881446 | F66: 65 | G66: =LL*P00*EXP(aa*F66)/(LL+P00*(EXP(aa*F66)-1)) -> 2439.006923
A67: 66 | B67: 85.79881499 | F67: 66 | G67: 2442.664692
A68: 67 | B68: 85.79881539 | F68: 67 | G68: 2445.983846
A69: 68 | B69: 85.79881569 | F69: 68 | G69: 2448.994924
A70: 69 | B70: 85.79881591 | F70: 69 | G70: 2451.725855
A71: 70 | B71: 85.79881607 | F71: 70 | G71: 2454.202159
A72: 71 | B72: 85.7988162 | F72: 71 | G72: 2456.447125
A73: 72 | B73: 85.79881629 | F73: 72 | G73: 2458.481998
A74: 73 | B74: 85.79881636 | F74: 73 | G74: 2460.326134
A75: 74 | B75: 85.79881641 | F75: 74 | G75: 2461.997163
A76: 75 | B76: 85.79881645 | F76: 75 | G76: 2463.51113
A77: 76 | B77: 85.79881648 | F77: 76 | G77: 2464.88263
A78: 77 | B78: 85.7988165 | F78: 77 | G78: 2466.12493
A79: 78 | B79: 85.79881652 | F79: 78 | G79: 2467.25009
A80: 79 | B80: 85.79881653 | F80: 79 | G80: 2468.269062
A81: 80 | B81: 85.79881654 | F81: 80 | G81: 2469.191792
A82: 81 | B82: 85.79881655 | F82: 81 | G82: 2470.027307
A83: 82 | B83: 85.79881655 | F83: 82 | G83: 2470.783799
A84: 83 | B84: 85.79881656 | F84: 83 | G84: 2471.468702
A85: 84 | B85: 85.79881656 | F85: 84 | G85: 2472.088754
A86: 85 | B86: 85.79881656 | F86: 85 | G86: 2472.650069
A87: 86 | B87: 85.79881656 | F87: 86 | G87: 2473.158188
A88: 87 | B88: 85.79881656 | F88: 87 | G88: 2473.618132
A89: 88 | B89: 85.79881657 | F89: 88 | G89: 2474.034455
A90: 89 | B90: 85.79881657 | F90: 89 | G90: 2474.41128
A91: 90 | B91: 85.79881657 | F91: 90 | G91: 2474.752344
A92: 91 | B92: 85.79881657 | F92: 91 | G92: 2475.061033
A93: 92 | B93: 85.79881657 | F93: 92 | G93: 2475.340412
A94: 93 | B94: 85.79881657 | F94: 93 | G94: 2475.59326
A95: 94 | B95: 85.79881657 | F95: 94 | G95: 2475.82209
A96: 95 | B96: 85.79881657 | F96: 95 | G96: 2476.029181
A97: 96 | B97: 85.79881657 | F97: 96 | G97: 2476.216594
A98: 97 | B98: =a*P0*EXP(a*A98)/(a+b*P0*(EXP(a*A98)-1)) -> 85.79881657 | F98: 97 | G98: =LL*P00*EXP(aa*F98)/(LL+P00*(EXP(aa*F98)-1)) -> 2476.386197
A99: 98 | B99: 85.79881657 | F99: 98 | G99: 2476.53968
A100: 99 | B100: 85.79881657 | F100: 99 | G100: 2476.678574
A101: 100 | B101: 85.79881657 | F101: 100 | G101: 2476.804264
A102: 101 | B102: 85.79881657 | F102: 101 | G102: 2476.918003
A103: 102 | B103: 85.79881657 | F103: 102 | G103: 2477.020928
A104: 103 | B104: 85.79881657 | F104: 103 | G104: 2477.114066
A105: 104 | B105: 85.79881657 | F105: 104 | G105: 2477.198346
A106: 105 | B106: 85.79881657 | F106: 105 | G106: 2477.274611
A107: 106 | B107: 85.79881657 | F107: 106 | G107: 2477.343623
A108: 107 | B108: 85.79881657 | F108: 107 | G108: 2477.406071
A109: 108 | B109: 85.79881657 | F109: 108 | G109: 2477.462578
A110: 109 | B110: 85.79881657 | F110: 109 | G110: 2477.513711
A111: 110 | B111: 85.79881657 | F111: 110 | G111: 2477.559979
A112: 111 | B112: 85.79881657 | F112: 111 | G112: 2477.601846
A113: 112 | B113: 85.79881657 | F113: 112 | G113: 2477.63973
A114: 113 | B114: 85.79881657 | F114: 113 | G114: 2477.674009
A115: 114 | B115: 85.79881657 | F115: 114 | G115: 2477.705028
A116: 115 | B116: 85.79881657 | F116: 115 | G116: 2477.733095
A117: 116 | B117: 85.79881657 | F117: 116 | G117: 2477.758492
A118: 117 | B118: 85.79881657 | F118: 117 | G118: 2477.781472
A119: 118 | B119: 85.79881657 | F119: 118 | G119: 2477.802266
A120: 119 | B120: 85.79881657 | F120: 119 | G120: 2477.821082
A121: 120 | B121: 85.79881657 | F121: 120 | G121: 2477.838107
A122: 121 | B122: 85.79881657 | F122: 121 | G122: 2477.853512
A123: 122 | B123: 85.79881657 | F123: 122 | G123: 2477.867452
A124: 123 | B124: 85.79881657 | F124: 123 | G124: 2477.880065
A125: 124 | B125: 85.79881657 | F125: 124 | G125: 2477.891478
A126: 125 | B126: 85.79881657 | F126: 125 | G126: 2477.901804
A127: 126 | B127: 85.79881657 | F127: 126 | G127: 2477.911149
A128: 127 | B128: 85.79881657 | F128: 127 | G128: 2477.919604
A129: 128 | B129: 85.79881657 | F129: 128 | G129: 2477.927254
A130: 129 | B130: =a*P0*EXP(a*A130)/(a+b*P0*(EXP(a*A130)-1)) -> 85.79881657 | F130: 129 | G130: =LL*P00*EXP(aa*F130)/(LL+P00*(EXP(aa*F130)-1)) -> 2477.934177
A131: 130 | B131: 85.79881657 | F131: 130 | G131: 2477.94044
A132: 131 | B132: 85.79881657 | F132: 131 | G132: 2477.946108
A133: 132 | B133: 85.79881657 | F133: 132 | G133: 2477.951237
A134: 133 | B134: 85.79881657 | F134: 133 | G134: 2477.955877
A135: 134 | B135: 85.79881657 | F135: 134 | G135: 2477.960076
A136: 135 | B136: 85.79881657 | F136: 135 | G136: 2477.963875
A137: 136 | B137: 85.79881657 | F137: 136 | G137: 2477.967313
A138: 137 | B138: 85.79881657 | F138: 137 | G138: 2477.970423
A139: 138 | B139: 85.79881657 | F139: 138 | G139: 2477.973238
A140: 139 | B140: 85.79881657 | F140: 139 | G140: 2477.975785
A141: 140 | B141: 85.79881657 | F141: 140 | G141: 2477.978089
A142: 141 | B142: 85.79881657 | F142: 141 | G142: 2477.980174
A143: 142 | B143: 85.79881657 | F143: 142 | G143: 2477.982061
A144: 143 | B144: 85.79881657 | F144: 143 | G144: 2477.983768
A145: 144 | B145: 85.79881657 | F145: 144 | G145: 2477.985313
A146: 145 | B146: 85.79881657 | F146: 145 | G146: 2477.98671
A147: 146 | B147: 85.79881657 | F147: 146 | G147: 2477.987975
A148: 147 | B148: 85.79881657 | F148: 147 | G148: 2477.989119
A149: 148 | B149: 85.79881657 | F149: 148 | G149: 2477.990155
A150: 149 | B150: 85.79881657 | F150: 149 | G150: 2477.991092
A151: 150 | B151: 85.79881657 | F151: 150 | G151: 2477.991939
A152: 151 | B152: 85.79881657 | F152: 151 | G152: 2477.992706
A153: 152 | B153: 85.79881657 | F153: 152 | G153: 2477.9934
A154: 153 | B154: 85.79881657 | F154: 153 | G154: 2477.994029
A155: 154 | B155: 85.79881657 | F155: 154 | G155: 2477.994597
A156: 155 | B156: 85.79881657 | F156: 155 | G156: 2477.995111
A157: 156 | B157: 85.79881657 | F157: 156 | G157: 2477.995576
A158: 157 | B158: 85.79881657 | F158: 157 | G158: 2477.995997
A159: 158 | B159: 85.79881657 | F159: 158 | G159: 2477.996378
A160: 159 | B160: 85.79881657 | F160: 159 | G160: 2477.996723
A161: 160 | B161: 85.79881657 | F161: 160 | G161: 2477.997035
A162: 161 | B162: =a*P0*EXP(a*A162)/(a+b*P0*(EXP(a*A162)-1)) -> 85.79881657 | F162: 161 | G162: =LL*P00*EXP(aa*F162)/(LL+P00*(EXP(aa*F162)-1)) -> 2477.997317
A163: 162 | B163: 85.79881657 | F163: 162 | G163: 2477.997572
A164: 163 | B164: 85.79881657 | F164: 163 | G164: 2477.997803
A165: 164 | B165: 85.79881657 | F165: 164 | G165: 2477.998012
A166: 165 | B166: 85.79881657 | F166: 165 | G166: 2477.998201
A167: 166 | B167: 85.79881657 | F167: 166 | G167: 2477.998373
A168: 167 | B168: 85.79881657 | F168: 167 | G168: 2477.998527
A169: 168 | B169: 85.79881657 | F169: 168 | G169: 2477.998668
A170: 169 | B170: 85.79881657 | F170: 169 | G170: 2477.998794
A171: 170 | B171: 85.79881657 | F171: 170 | G171: 2477.998909
A172: 171 | B172: 85.79881657 | F172: 171 | G172: 2477.999013
A173: 172 | B173: 85.79881657 | F173: 172 | G173: 2477.999107
A174: 173 | B174: 85.79881657 | F174: 173 | G174: 2477.999192
A175: 174 | B175: 85.79881657 | F175: 174 | G175: 2477.999269
A176: 175 | B176: 85.79881657 | F176: 175 | G176: 2477.999338
A177: 176 | B177: 85.79881657 | F177: 176 | G177: 2477.999401
A178: 177 | B178: 85.79881657 | F178: 177 | G178: 2477.999458
A179: 178 | B179: 85.79881657 | F179: 178 | G179: 2477.99951
A180: 179 | B180: 85.79881657 | F180: 179 | G180: 2477.999556
A181: 180 | B181: 85.79881657 | F181: 180 | G181: 2477.999599
A182: 181 | B182: 85.79881657 | F182: 181 | G182: 2477.999637
A183: 182 | B183: 85.79881657 | F183: 182 | G183: 2477.999671
A184: 183 | B184: 85.79881657 | F184: 183 | G184: 2477.999703
A185: 184 | B185: 85.79881657 | F185: 184 | G185: 2477.999731
A186: 185 | B186: 85.79881657 | F186: 185 | G186: 2477.999757
A187: 186 | B187: 85.79881657 | F187: 186 | G187: 2477.99978
A188: 187 | B188: 85.79881657 | F188: 187 | G188: 2477.999801
A189: 188 | B189: 85.79881657 | F189: 188 | G189: 2477.99982
A190: 189 | B190: 85.79881657 | F190: 189 | G190: 2477.999837
A191: 190 | B191: 85.79881657 | F191: 190 | G191: 2477.999852
A192: 191 | B192: 85.79881657 | F192: 191 | G192: 2477.999866
A193: 192 | B193: 85.79881657 | F193: 192 | G193: 2477.999879
A194: 193 | B194: =a*P0*EXP(a*A194)/(a+b*P0*(EXP(a*A194)-1)) -> 85.79881657 | F194: 193 | G194: =LL*P00*EXP(aa*F194)/(LL+P00*(EXP(aa*F194)-1)) -> 2477.999891
A195: 194 | B195: 85.79881657 | F195: 194 | G195: 2477.999901
A196: 195 | B196: 85.79881657 | F196: 195 | G196: 2477.99991
A197: 196 | B197: 85.79881657 | F197: 196 | G197: 2477.999919
A198: 197 | B198: 85.79881657 | F198: 197 | G198: 2477.999927
A199: 198 | B199: 85.79881657 | F199: 198 | G199: 2477.999934
A200: 199 | B200: 85.79881657 | C200: =a/b -> 85.79881657 | F200: 199 | G200: 2477.99994
... 1 more rows

Sheet Sheet4
